fUST/lending_fUST_20240119
["ID","MTS","AMOUNT","RATE_DAILY","PERIOD"]
[312105739,1705630241182,-500.67574723,0.00032876,2]
[312105740,1705630241191,-500.0,0.00032876,2]
[312105741,1705630241200,-500.0,0.00032876,2]
[312105742,1705630241209,-502.01974004,0.00032876,2]
[312105743,1705630241218,-1240.85,0.00032876,2]
[312105744,1705630241227,-500.61638152,0.00032876,2]
[312105745,1705630241236,-500.0,0.00032876,2]
[312105746,1705630241245,-500.0,0.00032876,2]
[312105747,1705630241254,-506.81300677,0.00032876,2]
[312105748,1705630241263,-532.95,0.00032876,2]
[312105749,1705630241274,-500.38185685,0.00032876,2]
[312105750,1705630241284,-505.09494181,0.00032876,2]
[312105751,1705630241294,-500.0,0.00032876,2]
[312105752,1705630241303,-500.0,0.00032876,2]
[312105753,1705630241311,-500.0,0.00032876,2]
[312105754,1705630241321,-500.0,0.00032876,2]
[312105755,1705630241329,-500.0,0.00032876,2]
[312105756,1705630241338,-500.0,0.00032876,2]
[312105757,1705630241348,-500.0,0.00032876,2]
[312105758,1705630241358,-500.5698228,0.00032876,2]
[312105759,1705630241368,-500.0,0.00032876,2]
[312105760,1705630241378,-2493.26,0.00032876,2]
[312105761,1705630241387,-500.0,0.00032876,2]
[312105762,1705630241397,-500.0,0.00032876,2]
[312105763,1705630241406,-500.0,0.00032876,2]
[312105764,1705630241415,-500.0,0.00032876,2]
[312105765,1705630241424,-500.0,0.00032876,2]
[312105766,1705630241437,-500.0,0.00032876,2]
[312105767,1705630241446,-500.0,0.00032876,2]
[312105768,1705630241456,-500.0,0.00032876,2]
[312105769,1705630241466,-1000.0,0.00032876,2]
[312105770,1705630241475,-227.53860461,0.00032876,2]
[312105771,1705630241483,-500.0,0.00032876,2]
[312105772,1705630241492,-500.0,0.00032876,2]
[312105773,1705630241501,-500.0,0.00032876,2]
[312105774,1705630241510,-600.2,0.00032876,2]
[312105775,1705630241519,-506.50835302,0.00032876,2]
[312105776,1705630241528,-500.0,0.00032876,2]
[312105777,1705630241537,-514.04191322,0.00032876,2]
[312105778,1705630241546,-500.0,0.00032876,2]
[312105779,1705630241554,-500.0,0.00032876,2]
[312105780,1705630241563,-500.0,0.00032876,2]
[312105781,1705630241572,-500.0,0.00032876,2]
[312105782,1705630241581,-500.58497799,0.00032876,2]
[312105783,1705630241590,-500.0,0.00032876,2]
[312105784,1705630241599,-500.0,0.00032876,2]
[312105785,1705630241608,-500.0,0.00032876,2]
[312105786,1705630241617,-287.43882541,0.00032876,2]
[312105787,1705630241626,-500.0,0.00032876,2]
[312105788,1705630241636,-642.04263238,0.00032876,2]
[312105789,1705630241645,-500.0,0.00032876,2]
[312105790,1705630241654,-500.0,0.00032876,2]
[312105791,1705630241663,-503.80379384,0.00032876,2]
[312105792,1705630241673,-455.01919157,0.00032876,2]
[312105793,1705630241684,-500.0,0.00032876,2]
[312105794,1705630241694,-501.03488795,0.00032876,2]
[312105795,1705630241704,-500.0,0.00032876,2]
[312105796,1705630241713,-500.0,0.00032876,2]
[312105797,1705630241723,-500.0,0.00032876,2]
[312105798,1705630241732,-500.0,0.00032876,2]
[312105799,1705630241741,-502.97710303,0.00032876,2]
[312105800,1705630241751,-500.0,0.00032876,2]
[312105801,1705630241761,-500.0,0.00032876,14]
[312105802,1705630241771,-500.0,0.00032876,2]
[312105803,1705630241780,-540.53,0.00032876,2]
[312105804,1705630241792,-500.0,0.00032876,2]
[312105805,1705630241801,-593.33472354,0.00032876,2]
[312105806,1705630241812,-975.55,0.00032876,2]
[312105807,1705630241822,-504.32707851,0.00032876,2]
[312105808,1705630241831,-500.0,0.00032876,2]
[312105809,1705630241840,-500.0,0.00032876,2]
[312105810,1705630241850,-500.82902477,0.00032876,2]
[312105811,1705630241859,-500.0,0.00032876,2]
[312105812,1705630241869,-500.0,0.00032876,2]
[312105813,1705630241878,-500.0,0.00032876,2]
[312105814,1705630241887,-500.0,0.00032876,2]
[312105815,1705630241896,-500.47952673,0.00032876,2]
[312105816,1705630241905,-1628.83,0.00032876,2]
[312105817,1705630241915,-504.85279529,0.00032876,2]
[312105818,1705630241924,-500.51110495,0.00032876,2]
[312105819,1705630241934,-500.0,0.00032876,2]
[312105820,1705630241943,-500.64567436,0.00032876,2]
[312105821,1705630241953,-1875.28,0.00032876,2]
[312105822,1705630241962,-500.0,0.00032876,2]
[312105823,1705630241971,-502.31398603,0.00032876,2]
[312105824,1705630241980,-500.0,0.00032876,2]
[312105825,1705630241989,-500.0,0.00032876,2]
[312105826,1705630241998,-554.19,0.00032876,2]
[312105827,1705630242007,-500.0,0.00032876,2]
[312105828,1705630242016,-500.48467249,0.00032876,2]
[312105829,1705630242026,-534.69758998,0.00032876,2]
[312105830,1705630242035,-500.0,0.00032876,2]
[312105831,1705630242043,-500.0,0.00032876,2]
[312105832,1705630242052,-501.76139814,0.00032876,2]
[312105833,1705630242061,-503.99192001,0.00032876,2]
[312105834,1705630242071,-500.0,0.00032876,2]
[312105835,1705630242080,-563.89,0.00032876,2]
[312105836,1705630242091,-500.0,0.00032876,2]
[312105837,1705630242101,-500.0,0.00032876,2]
[312105838,1705630242111,-502.35373575,0.00032876,2]
[312105839,1705630242122,-500.0,0.00032876,2]
[312105840,1705630242132,-500.0,0.00032876,2]
[312105841,1705630242141,-500.0,0.00032876,2]
[312105842,1705630242209,-502.28537969,0.00032876,2]
[312105843,1705630242226,-500.0,0.00032876,2]
[312105844,1705630242235,-504.88440796,0.00032876,2]
[312105845,1705630242244,-500.0,0.00032876,2]
[312105846,1705630242254,-500.0,0.00032876,2]
[312105847,1705630242263,-501.88135404,0.00032876,2]
[312105848,1705630242274,-500.0,0.00032876,2]
[312105849,1705630242282,-500.0,0.00032876,2]
[312105850,1705630242293,-500.0,0.00032876,2]
[312105851,1705630242303,-618.85,0.00032876,2]
[312105852,1705630242313,-500.0,0.00032876,2]
[312105853,1705630242323,-500.0,0.00032876,2]
[312105854,1705630242332,-500.0,0.00032876,2]
[312105855,1705630242344,-633.835,0.00032876,2]
[312105856,1705630242354,-500.0,0.00032876,2]
[312105857,1705630242363,-500.0,0.00032876,2]
[312105858,1705630242372,-500.71712244,0.00032876,2]
[312105859,1705630242381,-501.83842112,0.00032876,2]
[312105860,1705630242391,-500.0,0.00032876,2]
[312105861,1705630242400,-500.0,0.00032876,2]
[312105862,1705630242408,-707.09,0.00032876,2]
[312105863,1705630242418,-500.0,0.00032876,2]
[312105864,1705630242428,-1096.83,0.00032876,2]
[312105865,1705630242441,-500.0,0.00032876,2]
[312105866,1705630242450,-500.0,0.00032876,2]
[312105867,1705630242459,-1452.86,0.00032876,2]
[312105868,1705630242469,-500.73985236,0.00032876,2]
[312105869,1705630242478,-500.0,0.00032876,2]
[312105870,1705630242487,-503.42884817,0.00032876,2]
[312105871,1705630242497,-1634.22,0.00032876,2]
[312105872,1705630242506,-500.0,0.00032876,2]
[312105873,1705630242515,-501.4314439,0.00032876,2]
[312105874,1705630242523,-500.0,0.00032876,2]
[312105875,1705630242533,-504.60443629,0.00032876,2]
[312105876,1705630242542,-497.30356966,0.00032876,2]
[312105877,1705630242553,-506.35665942,0.00032876,2]
[312105878,1705630242564,-503.45371176,0.00032876,2]
[312105879,1705630242574,-500.0,0.00032876,2]
[312105880,1705630242583,-8867.42,0.00032876,2]
[312105881,1705630242593,-469.635359,0.00032876,2]
[312105882,1705630242602,-500.0,0.00032876,2]
[312105883,1705630242611,-501.47193349,0.00032876,2]
[312105884,1705630242620,-501.06606409,0.00032876,2]
[312105885,1705630242629,-503.20623737,0.00032876,2]
[312105886,1705630242638,-502.48230786,0.00032876,2]
[312105887,1705630242649,-500.0,0.00032876,2]
[312105888,1705630242658,-500.0,0.00032876,2]
[312105889,1705630242667,-500.0,0.00032876,2]
[312105890,1705630242676,-1388.87,0.00032876,2]
[312105891,1705630242687,-13711.72,0.00032876,2]
[312105892,1705630242696,-750.83,0.00032876,2]
[312105893,1705630242705,-602.61739208,0.00032876,2]
[312105894,1705630242714,-500.0,0.00032876,2]
[312105895,1705630242723,-500.0,0.00032876,2]
[312105896,1705630242732,-500.0,0.00032876,2]
[312105898,1705630242742,-500.53031747,0.00032876,2]
[312105899,1705630242751,-500.0,0.00032876,2]
[312105900,1705630242760,-500.0,0.00032876,2]
[312105901,1705630242770,-500.0,0.00032876,2]
[312105902,1705630242782,-500.0,0.00032876,2]
[312105903,1705630242791,-2926.93,0.00032876,2]
[312105904,1705630242800,-197.43911502,0.00032876,2]
[312105905,1705630242809,-500.0,0.00032876,2]
[312105906,1705630242818,-504.89253781,0.00032876,2]
[312105907,1705630242828,-900.93,0.00032876,2]
[312105908,1705630242837,-900.93,0.00032876,2]
[312105909,1705630242846,-900.93,0.00032876,2]
[312105910,1705630242854,-900.93,0.00032876,2]
[312105911,1705630242864,-500.64880738,0.00032876,2]
[312105912,1705630242874,-500.0,0.00032876,2]
[312105913,1705630242883,-500.0,0.00032876,2]
[312105914,1705630242892,-872.03,0.00032876,2]
[312105915,1705630242901,-500.0,0.00032876,2]
[312105916,1705630242910,-510.43954278,0.00032876,2]
[312105917,1705630242918,-150.0,0.00032876,2]
[312105918,1705630242927,-504.17788797,0.00032876,2]
[312105919,1705630242938,-500.0,0.00032876,2]
[312105920,1705630242947,-536.54378971,0.00032876,2]
[312105921,1705630242957,-501.00850365,0.00032876,2]
[312105922,1705630242967,-500.0,0.00032876,2]
[312105923,1705630242976,-500.0,0.00032876,2]
[312105924,1705630242986,-500.0,0.00032876,2]
[312105925,1705630242996,-500.0,0.00032876,5]
[312105926,1705630243005,-500.5733652,0.00032876,2]
[312105927,1705630243014,-500.0,0.00032876,2]
[312105928,1705630243025,-500.0,0.00032876,2]
[312105929,1705630243035,-500.0,0.00032876,2]
[312105930,1705630243045,-500.0,0.00032876,2]
[312105931,1705630243054,-3844.51,0.00032876,2]
[312105932,1705630243065,-506.5554029,0.00032876,2]
[312105934,1705630243074,-500.0,0.00032876,2]
[312105936,1705630243083,-174.6243154,0.00032876,2]
[312105937,1705630243092,-502.33415074,0.00032876,2]
[312105938,1705630243102,-503.17847827,0.00032876,2]
[312105939,1705630243111,-500.0,0.00032876,2]
[312105940,1705630243121,-500.0,0.00032876,2]
[312105941,1705630243132,-500.0,0.00032876,2]
[312105942,1705630243141,-637.62,0.00032876,2]
[312105943,1705630243151,-500.0,0.00032876,2]
[312105944,1705630243163,-3594.7,0.00032876,2]
[312105945,1705630243174,-509.23576103,0.00032876,2]
[312105946,1705630243184,-500.0,0.00032876,2]
[312105947,1705630243193,-1827.79,0.00032876,2]
[312105948,1705630243203,-500.0,0.00032876,2]
[312105949,1705630243212,-506.47953687,0.00032876,2]
[312105950,1705630243223,-500.0,0.00032876,2]
[312105951,1705630243234,-500.0,0.00032876,2]
[312105952,1705630243244,-300.0,0.00032876,2]
[312105953,1705630243254,-500.0,0.00032876,2]
[312105954,1705630243264,-194.81288984,0.00032876,2]
[312105955,1705630243274,-500.0,0.00032876,2]
[312105956,1705630243283,-500.0,0.00032876,2]
[312105957,1705630243292,-500.0,0.00032876,2]
[312105958,1705630243301,-1139.26,0.00032876,2]
[312105959,1705630243310,-500.0,0.00032876,2]
[312105960,1705630243319,-501.38753386,0.00032876,2]
[312105961,1705630243328,-500.0,0.00032876,2]
[312105962,1705630243337,-500.0,0.00032876,2]
[312105963,1705630243347,-500.0,0.00032876,2]
[312105964,1705630243356,-500.0,0.00032876,2]
[312105965,1705630243365,-500.0,0.00032876,2]
[312105966,1705630243374,-500.0,0.00032876,2]
[312105967,1705630243383,-500.0,0.00032876,2]
[312105968,1705630243392,-500.0,0.00032876,2]
[312105969,1705630243401,-516.44521209,0.00032876,2]
[312105970,1705630243410,-500.99613015,0.00032876,2]
[312105971,1705630243419,-1875.08,0.00032876,2]
[312105972,1705630243428,-500.0,0.00032876,2]
[312105973,1705630243439,-517.11756215,0.00033012,2]
[312105974,1705630243448,-38560.35367316,0.0003305,3]
[312105975,1705630243460,-555.0,0.0003312,30]
[312105976,1705630243470,-555.0,0.0003313,30]
[312105977,1705630243480,-555.0,0.0003314,30]
[312105978,1705630243489,-500.0,0.00033149,3]
[312105979,1705630243498,-500.0,0.00033149,3]
[312105980,1705630243507,-900.93,0.00033149,3]
[312105981,1705630243516,-250.0,0.00033149,7]
[312105982,1705630243525,-500.0,0.00033149,2]
[312105983,1705630243534,-614.47627222,0.00033149,2]
[312105984,1705630243543,-500.0,0.00033149,2]
[312105985,1705630243552,-500.0,0.00033149,2]
[312105986,1705630243562,-500.0,0.00033149,2]
[312105987,1705630243573,-500.0,0.00033149,2]
[312105988,1705630243581,-500.0,0.00033149,2]
[312105989,1705630243590,-450.15557834,0.00033149,2]
[312105990,1705630243599,-500.0,0.00033149,2]
[312105991,1705630243608,-500.0,0.00033149,2]
[312105992,1705630243617,-500.0,0.00033149,2]
[312105993,1705630243626,-500.0,0.00033149,2]
[312105994,1705630243635,-500.0,0.00033149,2]
[312105995,1705630243644,-500.0,0.00033149,2]
[312105996,1705630243654,-347.89418192,0.00033149,2]
[312105997,1705630243663,-251.79806451,0.00033149,2]
[312105998,1705630243672,-647.97347249,0.00033149,2]
[312105999,1705630243681,-500.0,0.00033149,2]
[312106000,1705630243690,-500.0,0.00033149,2]
[312106001,1705630243700,-500.0,0.00033149,2]
[312106002,1705630243709,-500.0,0.00033149,2]
[312106003,1705630243718,-500.0,0.00033149,2]
[312106004,1705630243792,-500.0,0.00033149,2]
[312106005,1705630243803,-500.0,0.00033149,2]
[312106006,1705630243813,-500.0,0.00033149,2]
[312106007,1705630243824,-500.0,0.00033149,2]
[312106008,1705630243834,-561.65318269,0.00033149,2]
[312106009,1705630243843,-500.0,0.00033149,2]
[312106010,1705630243853,-500.0,0.00033149,2]
[312106011,1705630243864,-506.30842412,0.00033149,2]
[312106012,1705630243874,-500.0,0.00033149,2]
[312106013,1705630243883,-500.0,0.0003315,3]
[312106014,1705630243892,-500.0,0.0003315,3]
[312106015,1705630243901,-500.0,0.0003315,3]
[312106016,1705630243911,-500.0,0.0003315,3]
[312106017,1705630243920,-499.25770796,0.0003315,3]
[312106018,1705630243929,-500.0,0.0003315,3]
[312106019,1705630243939,-500.0,0.0003315,3]
[312106020,1705630243948,-502.98099743,0.0003315,3]
[312106021,1705630243957,-500.0,0.0003315,3]
[312106022,1705630243967,-500.0,0.0003315,3]
[312106023,1705630243977,-500.0,0.0003315,3]
[312106024,1705630243986,-501.96821226,0.0003315,3]
[312106025,1705630243995,-500.0,0.0003315,3]
[312106026,1705630244003,-500.0,0.0003315,3]
[312106027,1705630244012,-537.49,0.0003315,3]
[312106028,1705630244022,-502.53563674,0.0003315,3]
[312106029,1705630244032,-502.47371861,0.0003315,3]
[312106030,1705630244042,-468.5128347,0.0003315,3]
[312106031,1705630244052,-502.43897131,0.0003315,3]
[312106032,1705630244061,-503.11256309,0.0003315,3]
[312106033,1705630244070,-346.22800659,0.0003315,3]
[312106034,1705630244080,-500.0,0.0003315,3]
[312106035,1705630244089,-500.0,0.0003315,3]
[312106036,1705630244098,-500.0,0.0003315,3]
[312106037,1705630244108,-500.0,0.0003315,3]
[312106038,1705630244118,-501.85237378,0.0003315,3]
[312106039,1705630244127,-500.0,0.0003315,3]
[312106040,1705630244136,-240.94076007,0.0003315,3]
[312106041,1705630244145,-854.95,0.0003315,3]
[312106042,1705630244154,-474.60116069,0.0003315,3]
[312106043,1705630244164,-500.0,0.0003315,3]
[312106044,1705630244173,-502.27871451,0.0003315,3]
[312106045,1705630244183,-502.34833934,0.0003315,3]
[312106046,1705630244193,-500.0,0.0003315,3]
[312106047,1705630244202,-500.0,0.0003315,3]
[312106048,1705630244211,-500.0,0.0003315,3]
[312106049,1705630244247,-630.94392972,0.0003315,3]
[312106050,1705630244257,-500.0,0.0003315,3]
[312106051,1705630244266,-635.96694651,0.0003315,3]
[312106052,1705630244275,-505.22432973,0.0003315,3]
[312106053,1705630244283,-500.0,0.0003315,3]
[312106054,1705630244292,-501.94159678,0.0003315,3]
[312106055,1705630244301,-500.0,0.0003315,3]
[312106056,1705630244310,-500.0,0.0003315,3]
[312106057,1705630244319,-501.4837234,0.0003315,3]
[312106058,1705630244327,-500.0,0.0003315,3]
[312106059,1705630244336,-500.0,0.0003315,3]
[312106060,1705630244345,-504.49546555,0.0003315,3]
[312106061,1705630244354,-500.47571973,0.0003315,3]
[312106062,1705630244363,-226.07304501,0.0003315,3]
[312106063,1705630244372,-501.48231904,0.0003315,3]
[312106064,1705630244381,-500.0,0.0003315,3]
[312106065,1705630244390,-500.0,0.0003315,3]
[312106066,1705630244399,-503.85611457,0.0003315,3]
[312106067,1705630244408,-998.18507882,0.0003315,2]
[312106068,1705630244417,-500.0,0.0003315,3]
[312106069,1705630244426,-501.49907098,0.0003315,3]
[312106070,1705630244435,-500.0,0.0003315,3]
[312106071,1705630244444,-501.55394383,0.0003315,3]
[312106072,1705630244453,-500.0,0.0003315,3]
[312106073,1705630244462,-500.61489672,0.0003315,3]
[312106074,1705630244471,-296.75355326,0.0003315,3]
[312106075,1705630244480,-507.84931594,0.0003315,3]
[312106076,1705630244489,-501.32970261,0.0003315,3]
[312106077,1705630244497,-500.0,0.0003315,3]
[312106078,1705630244506,-500.0,0.0003315,3]
[312106079,1705630244515,-512.03505382,0.0003315,3]
[312106080,1705630244524,-505.63003391,0.0003315,3]
[312106081,1705630244535,-597.89688025,0.0003315,3]
[312106082,1705630244544,-558.98499272,0.0003315,3]
[312106083,1705630244553,-509.90109657,0.0003315,3]
[312106084,1705630244564,-505.05509235,0.0003315,3]
[312106085,1705630244575,-505.36171351,0.0003315,3]
[312106086,1705630244584,-512.50623965,0.0003315,3]
[312106087,1705630244593,-1002.73,0.0003315,3]
[312106088,1705630244602,-502.35871173,0.0003315,3]
[312106089,1705630244611,-500.0,0.0003315,3]
[312106090,1705630244621,-502.85906172,0.0003315,3]
[312106091,1705630244632,-502.1634203,0.0003315,3]
[312106092,1705630244641,-501.48152421,0.0003315,3]
[312106093,1705630244651,-528.86,0.0003315,3]
[312106094,1705630244660,-500.0,0.0003315,3]
[312106095,1705630244669,-501.21004478,0.0003315,3]
[312106096,1705630244678,-503.71487664,0.0003315,3]
[312106097,1705630244687,-480.61519015,0.0003315,3]
[312106098,1705630244696,-584.97586281,0.0003315,3]
[312106099,1705630244706,-1240.85,0.0003315,3]
[312106100,1705630244715,-364.49209463,0.0003315,3]
[312106101,1705630244724,-500.0,0.0003315,3]
[312106102,1705630244733,-532.95,0.0003315,3]
[312106103,1705630244742,-502.83450418,0.0003315,3]
[312106104,1705630244752,-502.95572955,0.0003315,3]
[312106105,1705630244762,-501.18705401,0.0003315,3]
[312106106,1705630244771,-500.0,0.0003315,3]
[312106107,1705630244782,-490.0,0.0003315,3]
[312106108,1705630244793,-500.0,0.0003315,3]
[312106109,1705630244802,-500.0,0.0003315,3]
[312106110,1705630244811,-2493.26,0.0003315,3]
[312106111,1705630244820,-500.0,0.0003315,3]
[312106112,1705630244830,-500.0,0.0003315,3]
[312106113,1705630244838,-501.72399123,0.0003315,3]
[312106114,1705630244848,-500.0,0.0003315,3]
[312106115,1705630244858,-296.52955403,0.0003315,3]
[312106116,1705630244869,-503.28476532,0.0003315,3]
[312106117,1705630244878,-500.0,0.0003315,3]
[312106118,1705630244888,-505.54813419,0.0003315,3]
[312106119,1705630244898,-1002.64129724,0.0003315,2]
[312106120,1705630244906,-407.97663313,0.0003315,3]
[312106121,1705630244916,-500.0,0.0003315,3]
[312106122,1705630244925,-500.0,0.0003315,3]
[312106123,1705630244935,-600.2,0.0003315,3]
[312106124,1705630244944,-500.0,0.0003315,3]
[312106125,1705630244953,-500.0,0.0003315,3]
[312106126,1705630244962,-500.0,0.0003315,3]
[312106127,1705630244972,-500.0,0.0003315,3]
[312106128,1705630244981,-271.81304611,0.0003315,3]
[312106129,1705630244990,-500.0,0.0003315,3]
[312106130,1705630244999,-501.42981573,0.0003315,3]
[312106131,1705630245008,-150.13372471,0.0003315,3]
[312106132,1705630245017,-500.0,0.0003315,3]
[312106133,1705630245026,-500.0,0.0003315,3]
[312106134,1705630245035,-501.68488927,0.0003315,3]
[312106135,1705630245044,-500.0,0.0003315,14]
[312106136,1705630245053,-500.0,0.0003315,3]
[312106137,1705630245063,-540.53,0.0003315,3]
[312106138,1705630245072,-500.0,0.0003315,3]
[312106139,1705630245082,-975.55,0.0003315,3]
[312106140,1705630245091,-500.0,0.0003315,3]
[312106141,1705630245100,-500.0,0.0003315,3]
[312106142,1705630245109,-503.56614441,0.0003315,3]
[312106143,1705630245118,-500.0,0.0003315,3]
[312106144,1705630245126,-500.0,0.0003315,3]
[312106145,1705630245136,-1628.83,0.0003315,3]
[312106146,1705630245145,-501.30538704,0.0003315,3]
[312106147,1705630245153,-1875.28,0.0003315,3]
[312106148,1705630245162,-500.0,0.0003315,3]
[312106149,1705630245171,-500.0,0.0003315,3]
[312106150,1705630245240,-500.0,0.0003315,3]
[312106151,1705630245250,-554.19,0.0003315,3]
[312106152,1705630245259,-500.0,0.0003315,3]
[312106153,1705630245268,-500.0,0.0003315,3]
[312106154,1705630245276,-500.0,0.0003315,3]
[312106155,1705630245285,-500.0,0.0003315,3]
[312106156,1705630245294,-265.14928865,0.0003315,3]
[312106157,1705630245303,-500.0,0.0003315,3]
[312106158,1705630245312,-500.0,0.0003315,3]
[312106159,1705630245321,-503.73008274,0.0003315,3]
[312106160,1705630245330,-500.0,0.0003315,3]
[312106161,1705630245338,-507.36376259,0.0003315,3]
[312106162,1705630245347,-500.0,0.0003315,3]
[312106163,1705630245356,-500.0,0.0003315,3]
[312106164,1705630245365,-503.21859856,0.0003315,3]
[312106165,1705630245374,-505.50777111,0.0003315,3]
[312106166,1705630245382,-618.85,0.0003315,3]
[312106167,1705630245391,-500.0,0.0003315,3]
[312106168,1705630245400,-502.91124872,0.0003315,3]
[312106169,1705630245409,-501.94234063,0.0003315,3]
[312106170,1705630245418,-362.20207053,0.0003315,3]
[312106171,1705630245427,-500.0,0.0003315,3]
[312106172,1705630245437,-506.23833256,0.0003315,3]
[312106173,1705630245446,-707.09,0.0003315,3]
[312106174,1705630245455,-504.72020689,0.0003315,3]
[312106175,1705630245464,-1096.83,0.0003315,3]
[312106176,1705630245473,-440.42890775,0.0003315,3]
[312106177,1705630245483,-501.38709058,0.0003315,3]
[312106178,1705630245492,-1452.86,0.0003315,3]
[312106179,1705630245501,-1634.22,0.0003315,3]
[312106180,1705630245511,-500.0,0.0003315,3]
[312106181,1705630245520,-500.0,0.0003315,3]
[312106182,1705630245529,-8867.42,0.0003315,3]
[312106183,1705630245539,-500.0,0.0003315,3]
[312106184,1705630245548,-500.87285916,0.0003315,3]
[312106185,1705630245557,-500.0,0.0003315,3]
[312106186,1705630245566,-500.0,0.0003315,3]
[312106187,1705630245574,-1388.87,0.0003315,3]
[312106188,1705630245583,-750.83,0.0003315,3]
[312106189,1705630245592,-13711.72,0.0003315,3]
[312106190,1705630245601,-500.0,0.0003315,3]
[312106191,1705630245610,-500.0,0.0003315,3]
[312106192,1705630245619,-500.0,0.0003315,3]
[312106193,1705630245629,-500.0,0.0003315,3]
[312106194,1705630245638,-400.0,0.0003315,3]
[312106195,1705630245648,-169.85993175,0.0003315,3]
[312106196,1705630245657,-500.0,0.0003315,3]
[312106197,1705630245665,-2926.93,0.0003315,3]
[312106198,1705630245675,-500.0,0.0003315,3]
[312106199,1705630245684,-500.0,0.0003315,3]
[312106200,1705630245693,-504.95023052,0.0003315,3]
[312106201,1705630245702,-872.03,0.0003315,3]
[312106202,1705630245711,-500.0,0.0003315,3]
[312106203,1705630245719,-150.0,0.0003315,3]
[312106204,1705630245728,-500.0,0.0003315,3]
[312106205,1705630245737,-502.86295168,0.0003315,3]
[312106206,1705630245747,-500.0,0.0003315,3]
[312106207,1705630245757,-648.73218011,0.0003315,3]
[312106208,1705630245766,-502.10655044,0.0003315,5]
[312106209,1705630245778,-500.0,0.0003315,3]
[312106210,1705630245793,-230.92803459,0.0003315,3]
[312106211,1705630245802,-506.24983584,0.0003315,3]
[312106212,1705630245811,-514.14096888,0.0003315,3]
[312106213,1705630245821,-3844.51,0.0003315,3]
[312106214,1705630245830,-500.0,0.0003315,3]
[312106215,1705630245839,-500.0,0.0003315,3]
[312106216,1705630245848,-500.0,0.0003315,3]
[312106217,1705630245862,-637.62,0.0003315,3]
[312106222,1705630245878,-500.0,0.0003315,3]
[312106225,1705630245893,-500.0,0.0003315,3]
[312106227,1705630245904,-3594.7,0.0003315,3]
[312106229,1705630245918,-501.64392268,0.0003315,3]
[312106232,1705630245931,-1827.79,0.0003315,3]
[312106236,1705630245946,-500.0,0.0003315,3]
[312106240,1705630245959,-507.23378468,0.0003315,3]
[312106243,1705630245972,-209.79330662,0.0003315,3]
[312106247,1705630245985,-301.03790621,0.0003315,2]
[312106251,1705630245998,-500.0,0.0003315,2]
[312106255,1705630246012,-515.47,0.0003315,3]
[312106258,1705630246024,-634.77506233,0.0003315,2]
[312106261,1705630246039,-500.0,0.0003315,3]
[312106263,1705630246050,-1139.26,0.0003315,3]
[312106266,1705630246064,-500.0,0.0003315,3]
[312106268,1705630246077,-500.0,0.0003315,3]
[312106271,1705630246092,-500.0,0.0003315,3]
[312106274,1705630246104,-500.0,0.0003315,3]
[312106277,1705630246117,-500.0,0.0003315,3]
[312106279,1705630246130,-209.72856301,0.0003315,3]
[312106281,1705630246143,-500.0,0.0003315,3]
[312106284,1705630246158,-501.28799706,0.0003315,3]
[312106287,1705630246172,-500.0,0.0003315,3]
[312106289,1705630246184,-1875.08,0.0003315,3]